fUSD/lending_fUSD_20240927
["ID","MTS","AMOUNT","RATE_DAILY","PERIOD"]
[339337447,1727453477464,-500.0,0.0001178,2]
[339337448,1727453477474,-500.0,0.0001178,2]
[339337449,1727453477483,-500.0,0.0001178,2]
[339337450,1727453477493,-3631.17,0.0001178,2]
[339337451,1727453477506,-503.75044967,0.0001178,2]
[339337452,1727453477515,-500.0,0.0001178,2]
[339337453,1727453477524,-500.0,0.0001178,2]
[339337454,1727453477534,-3631.17,0.0001178,2]
[339337455,1727453477545,-500.0,0.0001178,2]
[339337456,1727453477555,-500.0,0.0001178,2]
[339337457,1727453477564,-500.0,0.0001178,2]
[339337458,1727453477574,-3631.17,0.0001178,2]
[339337459,1727453477583,-500.0,0.0001178,2]
[339337460,1727453477592,-501.17632061,0.0001178,2]
[339337461,1727453477603,-500.0,0.0001178,2]
[339337462,1727453477612,-3631.17,0.0001178,2]
[339337463,1727453477621,-500.0,0.0001178,2]
[339337464,1727453477630,-500.0,0.0001178,2]
[339337465,1727453477640,-951.08754367,0.0001178,2]
[339337466,1727453478336,-500.35069982,0.0001178,2]
[339337467,1727453478348,-2179.73175651,0.0001178,2]
[339337468,1727453478359,-500.0,0.0001178,2]
[339337469,1727453478368,-500.0,0.0001178,2]
[339337470,1727453478378,-1016.41,0.0001178,2]
[339337471,1727453478387,-3631.17,0.0001178,2]
[339337472,1727453478397,-500.0,0.0001178,2]
[339337473,1727453478407,-500.0,0.0001178,2]
[339337474,1727453478416,-500.0,0.0001178,2]
[339337475,1727453478426,-500.0,0.0001178,2]
[339337476,1727453478436,-500.0,0.0001178,2]
[339337477,1727453478446,-3631.17,0.0001178,2]
[339337478,1727453478455,-500.0,0.0001178,2]
[339337479,1727453478465,-500.0,0.0001178,2]
[339337480,1727453478474,-500.0,0.0001178,2]
[339337481,1727453478776,-1016.41,0.0001178,2]
[339337482,1727453478809,-500.0,0.0001178,2]
[339337483,1727453478819,-500.0,0.0001178,2]
[339337484,1727453478828,-500.0,0.0001178,2]
[339337485,1727453478838,-500.0,0.0001178,2]
[339337486,1727453478847,-500.0,0.0001178,2]
[339337487,1727453478857,-500.0,0.0001178,2]
[339337488,1727453478866,-3631.17,0.0001178,2]
[339337489,1727453478875,-1016.41,0.0001178,2]
[339337490,1727453478885,-500.0,0.0001178,2]
[339337491,1727453478895,-500.0,0.0001178,2]
[339337492,1727453478904,-500.0,0.0001178,2]
[339337493,1727453478913,-500.0,0.0001178,2]
[339337494,1727453478923,-3631.17,0.0001178,2]
[339337495,1727453478932,-500.0,0.0001178,2]
[339337496,1727453478942,-1016.41,0.0001178,2]
[339337497,1727453478951,-211.20581352,0.0001178,2]
[339337498,1727453478978,-378.63818229,0.0001178,2]
[339337499,1727453478988,-500.0,0.0001178,2]
[339337500,1727453478998,-500.0,0.0001178,2]
[339337501,1727453479008,-500.0,0.0001178,2]
[339337502,1727453479018,-500.0,0.0001178,2]
[339337503,1727453479027,-3631.17,0.0001178,2]
[339337504,1727453479037,-381.35421124,0.0001178,2]
[339337505,1727453479046,-11.61760647,0.0001178,2]
[339337506,1727453479062,-1004.79239353,0.0001178,2]
[339337507,1727453479071,-500.0,0.0001178,2]
[339337508,1727453479080,-500.0,0.0001178,2]
[339337509,1727453479091,-500.0,0.0001178,2]
[339337510,1727453479102,-500.0,0.0001178,2]
[339337511,1727453479119,-3631.17,0.0001178,2]
[339337512,1727453479129,-500.0,0.0001178,2]
[339337513,1727453479138,-1016.41,0.0001178,2]
[339337514,1727453479149,-501.43882336,0.0001178,2]
[339337515,1727453479159,-122.66094349,0.0001178,2]
[339337516,1727453479178,-377.33905651,0.0001178,2]
[339337517,1727453479188,-500.0,0.0001178,2]
[339337518,1727453479197,-500.0,0.0001178,2]
[339337519,1727453479206,-762.43421906,0.0001178,2]
[339337520,1727453479219,-2868.73578094,0.0001178,2]
[339337521,1727453479229,-500.0,0.0001178,2]
[339337522,1727453479238,-941.9022404,0.0001178,2]
[339337523,1727453479251,-74.5077596,0.0001178,2]
[339337524,1727453479260,-500.0,0.0001178,2]
[339337525,1727453479270,-502.24564769,0.0001178,2]
[339337526,1727453479279,-229.04583271,0.0001178,2]
[339337527,1727453479306,-265.11524785,0.0001178,2]
[339337528,1727453479315,-500.0,0.0001178,2]
[339337529,1727453479325,-1016.41,0.0001178,2]
[339337530,1727453479335,-500.0,0.0001178,2]
[339337531,1727453479344,-3631.17,0.0001178,2]
[339337532,1727453479357,-455.63451281,0.0001178,2]
[339337533,1727453482745,517.63,0.00011054,2]
[339337534,1727453541834,250.0,0.00011038,2]
[339337535,1727453580678,150.0,0.00011013,2]
[339337536,1727453633191,250.0,0.00010853,2]
[339337537,1727453651817,232.29,8.928e-05,2]
[339337538,1727453685447,1500.0,0.00010959,2]
[339337539,1727453717369,420.49,0.00013918,30]
[339337540,1727453727746,1000.0,0.0001082,2]
[339337541,1727453757988,158.35,0.00010959,2]
[339337542,1727453796049,23900.0,0.00010818,2]
[339337548,1727453890363,744.59,0.0001081,2]
[339337555,1727453928683,155.41,0.00010801,2]
[339337559,1727453989373,352.93,0.00010805,2]
[339337561,1727454080124,250.0,0.00010804,2]
[339337562,1727454125228,250.0,0.00010959,2]
[339337563,1727454173974,250.0,0.00010794,2]
[339337566,1727454235152,11486.0,0.000103,5]
[339337567,1727454237304,1189.15,0.00010959,2]
[339337568,1727454289095,220.67,8.88e-05,2]
[339337569,1727454292743,399.46,0.00013918,30]
[339337570,1727454302513,150.0,0.00010578,2]
[339337571,1727454304950,150.0,0.00010578,2]
[339337572,1727454311707,150.0,0.00010578,2]
[339337573,1727454313561,150.0,0.00010578,2]
[339337574,1727454314689,1792.45617451,0.000121,30]
[339337588,1727454355609,1468.31623694,6.94e-05,2]
[339337589,1727454387989,1000.0,0.00010755,2]
[339337590,1727454389819,1435.35297625,4e-05,30]
[339337592,1727454416049,6205.78,0.00010747,2]
[339337596,1727454484313,372.29,0.0001074,2]
[339337597,1727454503268,8888.03759,0.00012,30]
[339337605,1727454577892,1050.0,0.00011,2]
[339337606,1727454588525,184.55,0.00010752,2]
[339337608,1727454598313,206.3757792,0.00015,30]
[339337617,1727454632231,-756.0,0.0001112,2]
[339337618,1727454632243,-4293.47016237,0.0001112,2]
[339337619,1727454632255,-1146.48983763,0.0001112,2]
[339337620,1727454632269,-709.73244454,0.0001112,2]
[339337621,1727454632280,-15048.28725287,0.0001112,2]
[339337622,1727454632289,-220.67,0.00011144,2]
[339337623,1727454632299,-4745.202484,0.00011463,2]
[339337624,1727454632308,-150.0,0.00011472,2]
[339337625,1727454632317,-27475.84025162,0.00011473,2]
[339337626,1727454632354,-668.1296863,0.00011473,2]
[339337627,1727454632414,-1182.37724129,0.00011473,2]
[339337628,1727454632425,-3568.6202541,0.00011473,2]
[339337629,1727454632437,-971.99258491,0.00011473,2]
[339337639,1727454638191,-7005.98536701,0.00011473,2]
[339337640,1727454638301,-589.33570175,0.00011473,2]
[339337641,1727454638313,-641.75799913,0.00011473,2]
[339337642,1727454638326,-6285.65951389,0.00011473,2]
[339337643,1727454638335,-5252.0426,0.00011473,2]
[339337644,1727454638347,-3239.9848,0.00011473,2]
[339337645,1727454638356,-8055.70164558,0.00011473,2]
[339337646,1727454638367,-9553.154996,0.00011473,2]
[339337647,1727454638378,-5050.64445842,0.00011473,2]
[339337648,1727454638387,-311.36912967,0.00011578,2]
[339337649,1727454638396,-3722.27641241,0.00011649,2]
[339337650,1727454638408,-2077.72358759,0.00011649,2]
[339337651,1727454638418,-5800.0,0.00011658,2]
[339337652,1727454638427,-5800.0,0.00011666,2]
[339337653,1727454638437,-46.51141241,0.00011675,2]
[339337654,1727454638448,-1384.75,0.00011675,2]
[339337655,1727454638459,-4368.73858759,0.00011675,2]
[339337656,1727454638468,-322.4808809,0.00011679,2]
[339337657,1727454638477,-1203.038,0.0001168,2]
[339337658,1727454638487,-21.24253151,0.0001168,2]
[339337659,1727454638498,-343.85707999,0.0001168,2]
[339337660,1727454638517,-634.9003885,0.0001168,2]
[339337661,1727454638534,-160.367817,0.0001168,2]
[339337662,1727454638545,-8.49757642,0.0001168,2]
[339337663,1727454638555,-316.21899854,0.0001168,2]
[339337664,1727454638564,-168.28273339,0.0001168,2]
[339337666,1727454638574,-514.38366603,0.0001168,2]
[339337668,1727454638586,-1759.48135128,0.0001168,2]
[339337670,1727454638597,-65.48141242,0.0001168,2]
[339337672,1727454638606,-5641.68795177,0.0001168,2]
[339337674,1727454638616,-674.12918332,0.0001168,2]
[339337676,1727454638626,-5800.0,0.00011683,2]
[339337679,1727454638635,-200.0,0.00011686,2]
[339337681,1727454638645,-499.99,0.00011686,2]
[339337682,1727454638655,-455.836,0.00011686,2]
[339337683,1727454638663,-182.536,0.00011686,2]
[339337684,1727454638673,-1394.31731449,0.00011692,2]
[339337685,1727454638686,-2249.76838887,0.00011692,2]
[339337686,1727454638709,-2155.91429664,0.00011692,2]
[339337687,1727454638718,-2909.28480336,0.000117,2]
[339337688,1727454638729,-2111.13867946,0.000117,2]
[339337689,1727454638740,-727.85189626,0.000117,2]
[339337690,1727454638751,-51.72462092,0.000117,2]
[339337691,1727454638760,-623.8235172,0.00011718,2]
[339337692,1727454638779,-1280.1764828,0.00011718,2]
[339337693,1727454638789,-554.0,0.00011718,2]
[339337694,1727454638797,-1910.0,0.00011718,2]
[339337695,1727454638806,-807.0,0.00011718,2]
[339337696,1727454638816,-1144.8986577,0.00011718,2]
[339337697,1727454638828,-701.89106013,0.00011718,2]
[339337698,1727454638838,-528.8844823,0.00011718,2]
[339337699,1727454638855,-973.32579987,0.00011718,2]
[339337700,1727454638864,-1081.0,0.00011718,2]
[339337701,1727454638874,-5871.0,0.00011718,2]
[339337702,1727454638883,-1263.0,0.00011718,2]
[339337703,1727454638893,-625.0,0.00011718,2]
[339337704,1727454638904,-150.0,0.00011718,2]
[339337705,1727454638913,-1296.0,0.00011718,2]
[339337706,1727454638922,-448.0,0.00011718,2]
[339337707,1727454638931,-217.34399043,0.00011753,2]
[339337708,1727454638941,-150.0,0.00011753,2]
[339337709,1727454638950,-153.0,0.00011766,2]
[339337710,1727454638959,-151.65,0.0001177,2]
[339337711,1727454638968,-253.13405709,0.0001177,2]
[339337712,1727454638978,-151.65,0.0001177,2]
[339337713,1727454638987,-500.0,0.00011773,2]
[339337714,1727454638996,-500.0,0.00011773,2]
[339337715,1727454639005,-45893.26718536,0.00011773,2]
[339337716,1727454639019,-506.26870493,0.00011773,2]
[339337717,1727454639033,-2383.3171002,0.00011773,2]
[339337718,1727454639043,-464.7457995,0.00011773,2]
[339337720,1727454639054,-1245.10525619,0.00011773,2]
[339337722,1727454639066,-399.35491428,0.00011773,2]
[339337724,1727454639077,-866.3865908,0.00011773,2]
[339337726,1727454639088,-1820.13629773,0.00011773,2]
[339337845,1727454640175,-5058.0394192,0.00011773,2]
[339337848,1727454640186,-620.66825957,0.00011773,2]
[339337865,1727454640341,-518.38273313,0.00011773,2]
[339337867,1727454640353,-13238.98128199,0.00011773,2]
[339337869,1727454640365,-779.06104228,0.00011773,2]
[339337879,1727454640452,-543.94693,0.00011773,2]
[339337882,1727454640463,-572.29237164,0.00011773,2]
[339337904,1727454643351,-636.83319831,0.00011718,2]
[339337905,1727454643363,-361.214,0.00011718,2]
[339337906,1727454643374,-148.95280169,0.00011718,2]
[339337907,1727454643383,-494.37931177,0.00011773,2]
[339337908,1727454643421,-16808.50537239,0.00011773,2]
[339337909,1727454643433,-22504.17215,0.00011773,2]
[339337910,1727454643445,-656.17218445,0.00011773,2]
[339337911,1727454643619,-613.58847921,0.00011773,2]
[339337912,1727454643676,-1096.61168738,0.00011773,2]
[339337913,1727454643736,-620.63201349,0.00011773,2]
[339337915,1727454644251,-69552.96104941,0.00011773,2]
[339337916,1727454644263,-36105.366018,0.00011773,2]
[339337917,1727454644274,-12045.2841444,0.00011773,2]
[339337918,1727454644283,-206.74981506,0.00011777,2]
[339337919,1727454644292,-1653.99852048,0.00011777,2]
[339337920,1727454644302,-11887.41028971,0.00011779,2]
[339337921,1727454644311,-2000.0,0.00011779,2]
[339337922,1727454644320,-500.0,0.00011779,2]
[339337923,1727454644329,-171.00182331,0.00011779,2]
[339337924,1727454644339,-500.0,0.00011779,2]
[339337925,1727454644349,-341.47763238,0.00011779,2]
[339337926,1727454644358,-500.0,0.00011779,2]
[339337927,1727454644367,-500.0,0.00011779,2]
[339337928,1727454644376,-500.0,0.00011779,2]
[339337929,1727454644385,-500.0,0.00011779,2]
[339337930,1727454644395,-588.7443798,0.00011779,2]
[339337931,1727454644406,-244.40532938,0.00011779,2]
[339337932,1727454644416,-500.0,0.00011779,2]
[339337933,1727454644425,-500.0,0.00011779,2]
[339337934,1727454644434,-500.0,0.00011779,2]
[339337935,1727454644443,-500.0,0.00011779,2]
[339337936,1727454644454,-500.0,0.00011779,2]
[339337937,1727454644463,-500.0,0.00011779,2]
[339337938,1727454644473,-500.0,0.00011779,2]
[339337939,1727454644482,-500.0,0.00011779,2]
[339337940,1727454644491,-500.0,0.00011779,2]
[339337941,1727454644500,-350.0,0.00011779,2]
[339337942,1727454644510,-500.0,0.00011779,2]
[339337943,1727454644519,-500.0,0.00011779,2]
[339337944,1727454644528,-556.0,0.0001178,2]
[339337945,1727454644537,-177817.43567182,0.0001178,2]
[339337955,1727454646209,-566.52851739,0.00011705,2]
[339337957,1727454646221,-366.47148261,0.00011705,2]
[339337959,1727454646232,-38455.4014183,0.0001178,2]
[339337961,1727454646243,-1657.21148328,0.0001178,2]
[339337962,1727454646254,-261.60174887,0.0001178,2]
[339337963,1727454646265,-1128.75496496,0.0001178,2]
[339337965,1727454646279,-4643.55379647,0.0001178,2]
[339337967,1727454646289,-2555.88000002,0.0001178,2]
[339337970,1727454646300,-3168.79943377,0.0001178,2]
[339337972,1727454646311,-644.53626184,0.0001178,2]
[339337974,1727454646321,-9724.32923828,0.0001178,2]
[339337976,1727454646333,-456.67106333,0.0001178,2]
[339337978,1727454646344,-4998.0,0.0001178,2]
[339337980,1727454646355,-3390.33831613,0.0001178,2]
[339337983,1727454646366,-648.109791,0.0001178,2]
[339337984,1727454646376,-1559.83935335,0.0001178,2]
[339337985,1727454646387,-1004.84499967,0.0001178,2]
[339337986,1727454646398,-13755.67873326,0.0001178,2]
[339337987,1727454646415,-12750.76903983,0.0001178,2]
[339337988,1727454646425,-8650.26506283,0.0001178,2]
[339337989,1727454646436,-930.0,0.0001178,2]
[339337990,1727454646453,-148713.17009898,0.0001178,2]
[339337991,1727454646464,-283.49453764,0.0001178,2]
[339337992,1727454646475,-459.58986104,0.0001178,2]
[339337993,1727454646486,-1035.23401614,0.0001178,2]
[339337994,1727454646496,-3047.37477701,0.0001178,2]
[339337995,1727454646507,-600.02450226,0.0001178,2]
[339337996,1727454646521,-1264.7968584,0.0001178,2]
[339337997,1727454646532,-10018.96925061,0.0001178,2]
[339337998,1727454646543,-498.29912691,0.0001178,2]
[339338013,1727454657391,250.0,0.00011077,2]
[339338015,1727454669303,250.0,0.00011061,2]
[339338017,1727454771523,1192.2119,0.00011019,2]
[339338018,1727454779600,187.7597,0.00011019,2]
[339338019,1727454844289,200.0,0.00010833,2]
[339338020,1727454851074,500.0,0.00010959,2]
[339338021,1727454858553,250.0,0.00010823,2]
[339338022,1727454870481,379.48,0.00013918,30]
[339338024,1727454927333,232.61,8.884e-05,2]
[339338025,1727454974057,13585.0954,0.00011017,2]
[339338027,1727454985351,200.0,0.00010813,2]
[339338028,1727454994862,322.89,0.00010959,2]
[339338029,1727455014646,150.0,0.00010841,2]
[339338030,1727455051380,1902.52,0.00010725,2]
[339338031,1727455099916,2763.62,0.00010813,2]
[339338032,1727455141746,903.32,0.00010723,2]
[339338033,1727455195045,823.06,0.00010776,2]
[339338034,1727455212490,250.0,0.00010776,2]
[339338035,1727455261069,571.82,0.00010753,2]
[339338036,1727455326941,30472.92,0.0001079,2]
[339338037,1727455421555,250.0,0.00010704,2]
[339338038,1727455487505,360.5,0.00013918,30]
[339338039,1727455495461,220.97,8.829e-05,2]
[339338040,1727455495741,220.97,0.00011093,2]
[339338041,1727455502725,150.0,0.00010578,2]
[339338042,1727455503082,150.0,0.00010746,2]
[339338043,1727455503417,150.0,0.00010914,2]
[339338044,1727455504123,150.0,0.00011082,2]
[339338045,1727455507297,150.0,0.00010578,2]
[339338046,1727455507617,150.0,0.0001097,2]
[339338047,1727455510987,150.35159066,0.00010578,2]
[339338048,1727455512906,150.00000001,0.00010578,2]
[339338049,1727455517569,150.0,0.00010578,2]
[339338050,1727455517789,150.0,0.00010774,2]
[339338051,1727455518108,150.0,0.0001097,2]
[339338052,1727455521429,150.0,0.00010578,2]
[339338053,1727455525283,150.0,0.00010578,2]
[339338054,1727455527089,221.91101493,0.00010578,2]
[339338055,1727455528995,150.0,0.00010578,2]
[339338056,1727455530861,150.0,0.00010578,2]
[339338057,1727455537061,150.0,0.00010578,2]
[339338058,1727455542425,150.35068824,0.00010578,2]
[339338059,1727455544313,150.0,0.00010578,2]
[339338060,1727455546220,183.87,0.00010959,2]
[339338061,1727455587732,190.26,0.00010959,2]
[339338062,1727455601508,1000.0,0.00010646,2]
[339338063,1727455608605,208.55,0.00010959,2]
[339338064,1727455619222,173.79,0.00010959,2]
[339338065,1727455629819,869.0,0.00010959,2]
[339338066,1727455702321,15345.10800721,0.0001,2]
[339338067,1727455729182,200.0,0.000156,120]
[339338068,1727455743462,411.53,0.000107,2]
[339338069,1727455804667,282.34,0.00010708,2]
[339338086,1727455831623,-1117.22136038,0.00011117,2]
[339338087,1727455831635,-263.33364364,0.00011117,2]
[339338088,1727455831646,-150.0,0.00011166,2]
[339338089,1727455831656,-150.0,0.00011166,2]
[339338090,1727455831665,-150.0,0.0001125,2]
[339338091,1727455831675,-1412.14945512,0.00011362,2]
[339338092,1727455831684,-150.0,0.00011362,2]
[339338093,1727455831694,-150.0,0.00011362,2]
[339338094,1727455831703,-150.0,0.00011418,2]
[339338096,1727455831712,-150.0,0.00011479,2]
[339338097,1727455831721,-300.0,0.00011516,2]
[339338099,1727455831730,-4904.34098881,0.00011517,2]
[339338101,1727455831742,-297.99594133,0.00011517,2]
[339338103,1727455831753,-2375.16069498,0.00011517,2]
[339338105,1727455831764,-3244.15518752,0.00011517,2]
[339338107,1727455831775,-4318.1251668,0.00011517,2]
[339338109,1727455831786,-911.6650359,0.00011517,2]
[339338111,1727455831796,-150.0,0.00011517,2]
[339338113,1727455831805,-3734.91974795,0.00011518,2]
[339338114,1727455831816,-2392.3966544,0.00011518,2]
[339338116,1727455831827,-1875.42835547,0.00011518,2]
[339338118,1727455831839,-3185.02759438,0.00011518,2]
[339338121,1727455831856,-10799.84907785,0.00011518,2]
[339338123,1727455831873,-3358.17169117,0.00011518,2]
[339338125,1727455831884,-2987.86287878,0.00011518,2]
[339338127,1727455831894,-658.0173,0.00011518,2]
[339338129,1727455831904,-2001.6043,0.00011518,2]
[339338130,1727455831913,-299.99,0.00011518,2]
[339338132,1727455831923,-2882.78,0.00011518,2]
[339338134,1727455831933,-499.99,0.00011518,2]
[339338136,1727455831942,-150.99,0.00011518,2]
[339338138,1727455831952,-340.08156816,0.00011524,2]
[339338139,1727455831961,-150.0,0.00011558,2]
[339338141,1727455831970,-150.0,0.00011586,2]
[339338143,1727455831980,-7135.2494,0.00011586,2]
[339338145,1727455831989,-21936.81483692,0.00011618,2]
[339338147,1727455832001,-108023.80526308,0.00011618,2]
[339338149,1727455832010,-226.0818,0.00011618,2]
[339338150,1727455832019,-1636.9819,0.00011618,2]
[339338152,1727455832029,-150.0,0.00011662,2]
[339338154,1727455832038,-150.99,0.00011662,2]
[339338156,1727455832048,-760.4749,0.00011673,2]
[339338157,1727455832058,-1000.0,0.00011673,2]
[339338158,1727455832067,-33188.8299,0.00011673,2]
[339338159,1727455832076,-63706.5632,0.00011673,2]
[339338160,1727455832085,-321.60322025,0.00011673,2]
[339338161,1727455832095,-12248.9453,0.0001168,2]
[339338162,1727455832104,-6056.69,0.0001168,2]
[339338163,1727455832114,-3386.27557811,0.0001168,2]
[339338164,1727455832123,-168.81099543,0.0001168,2]
[339338165,1727455832132,-6071.75001715,0.0001168,2]
[339338166,1727455832144,-4066.53555777,0.0001168,2]
[339338167,1727455832155,-450.037073,0.0001168,2]
[339338168,1727455832167,-5737.58739973,0.0001168,2]
[339338169,1727455832176,-676.55898919,0.0001168,2]
[339338170,1727455832186,-500.0,0.00011685,2]
[339338171,1727455832195,-500.0,0.00011686,2]
[339338172,1727455832204,-500.0,0.00011686,2]
[339338173,1727455832214,-200.0,0.00011686,2]
[339338174,1727455832223,-415.751,0.000117,2]
[339338175,1727455832234,-168.102,0.000117,2]
[339338176,1727455832245,-448.0,0.00011706,2]
[339338177,1727455832254,-1263.0,0.00011706,2]
[339338178,1727455832263,-625.0,0.00011706,2]
[339338179,1727455832272,-1296.0,0.00011706,2]
[339338180,1727455832282,-150.0,0.00011706,2]
[339338181,1727455832291,-810.0,0.00011706,2]
[339338182,1727455832300,-558.0,0.00011706,2]
[339338183,1727455832311,-933.0,0.00011706,2]
[339338184,1727455832322,-1904.0,0.00011706,2]
[339338185,1727455832332,-554.0,0.00011706,2]
[339338186,1727455832342,-3349.0,0.00011706,2]
[339338187,1727455832352,-1910.0,0.00011706,2]
[339338188,1727455832361,-807.0,0.00011706,2]
[339338189,1727455832370,-150.0,0.00011706,2]
[339338190,1727455832380,-5550.395,0.00011706,2]
[339338191,1727455832389,-3952.781,0.00011706,2]
[339338192,1727455832400,-1147.0,0.00011706,2]
[339338193,1727455832668,-150.0,0.00011753,2]
[339338194,1727455832678,-150.0,0.00011753,2]
[339338195,1727455832688,-150.0,0.00011753,2]
[339338196,1727455832698,-150.0,0.00011753,2]
[339338197,1727455832707,-150.00000001,0.00011753,2]
[339338198,1727455832717,-152.54,0.00011769,2]
[339338199,1727455832726,-152.54,0.00011769,2]
[339338200,1727455832736,-152.54,0.0001177,2]
[339338201,1727455832745,-500.0,0.00011773,2]
[339338202,1727455832754,-388.92563463,0.00011773,2]
[339338203,1727455832764,-500.0,0.00011773,2]
[339338204,1727455832773,-73266.355127,0.00011773,2]
[339338205,1727455832782,-13832.3157468,0.00011773,2]
[339338206,1727455832791,-237.0085845,0.00011773,2]
[339338207,1727455832801,-4708.6650676,0.00011773,2]
[339338208,1727455832810,-13531.53647698,0.00011778,2]
[339338209,1727455832820,-504.0,0.00011779,2]
[339338210,1727455832830,-3802.1890346,0.00011779,2]
[339338211,1727455832849,-2360.05380773,0.00011779,2]
[339338212,1727455832859,-2000.60044758,0.00011779,2]
[339338213,1727455832869,-500.0,0.00011779,2]
[339338214,1727455832878,-263.36564342,0.00011779,2]
[339338215,1727455832888,-500.0,0.00011779,2]
[339338216,1727455832899,-500.0,0.00011779,2]
[339338217,1727455832909,-500.0,0.00011779,2]
[339338218,1727455832918,-500.0,0.00011779,2]
[339338219,1727455832928,-500.0,0.00011779,2]
[339338220,1727455832937,-500.0,0.00011779,2]
[339338221,1727455832946,-500.0,0.00011779,2]
[339338222,1727455832956,-500.0,0.00011779,2]
[339338223,1727455832965,-500.0,0.00011779,2]
[339338224,1727455832974,-500.0,0.00011779,2]
[339338225,1727455832983,-500.0,0.00011779,2]
[339338226,1727455832993,-337.415803,0.00011779,2]
[339338227,1727455833003,-500.0,0.00011779,2]
[339338228,1727455833012,-369.45606584,0.00011779,2]
[339338229,1727455833022,-500.0,0.00011779,2]
[339338230,1727455833032,-500.0,0.00011779,2]
[339338231,1727455833041,-500.0,0.00011779,2]
[339338232,1727455833051,-277.58628471,0.00011779,2]
[339338233,1727455833063,-222.41371529,0.00011779,2]
[339338234,1727455833072,-38.74206638,0.00011779,2]
[339338235,1727455833090,-461.25793362,0.00011779,2]
[339338236,1727455833099,-56.59275334,0.00011779,2]
[339338237,1727455833111,-443.40724666,0.00011779,2]
[339338238,1727455833120,-263.56177168,0.00011779,2]
[339338239,1727455833130,-367.35098166,0.00011779,2]
[339338240,1727455833141,-132.64901834,0.00011779,2]
[339338241,1727455833153,-500.0,0.00011779,2]
[339338242,1727455833162,-500.0,0.00011779,2]
[339338243,1727455833172,-500.0,0.00011779,2]
[339338244,1727455833181,-500.0,0.00011779,2]
[339338245,1727455833190,-500.0,0.00011779,2]
[339338246,1727455833200,-445.91030211,0.0001178,2]
[339338247,1727455833235,-3099.91875805,0.0001178,2]
[339338248,1727455833250,-368.7704374,0.0001178,2]
[339338249,1727455833261,-388.88750137,0.0001178,2]
[339338250,1727455833272,-5003.70250805,0.0001178,2]
[339338251,1727455833285,-4250.50142563,0.0001178,2]
[339338256,1727455837447,-150.0,0.00011706,2]
[339338257,1727455837457,-1081.0,0.00011706,2]
[339338258,1727455837467,-12403.7150003,0.0001178,2]
[339338259,1727455837478,-500.56436029,0.0001178,2]
[339338260,1727455837489,-716.53939924,0.0001178,2]
[339338261,1727455837505,-18464.46472751,0.0001178,2]
[339338262,1727455837519,-1041.07666733,0.0001178,2]
[339338263,1727455837530,-478.0684832,0.0001178,2]
[339338264,1727455837541,-13468.2987027,0.0001178,2]
[339338265,1727455837552,-426.35735425,0.0001178,2]
[339338266,1727455837563,-303.35364713,0.0001178,2]
[339338267,1727455837575,-10441.17998013,0.0001178,2]
[339338268,1727455837586,-200604.30330072,0.0001178,2]
[339338269,1727455837597,-4538.33381839,0.0001178,2]
[339338270,1727455837608,-16602.28958187,0.0001178,2]
[339338271,1727455837618,-533.37437544,0.0001178,2]
[339338272,1727455837630,-767.54721912,0.0001178,2]
[339338273,1727455837647,-301.11415239,0.0001178,2]
[339338274,1727455837660,-363.60613795,0.0001178,2]
[339338275,1727455837670,-486.81726003,0.0001178,2]
[339338276,1727455837682,-257.82237684,0.0001178,2]
[339338277,1727455837693,-28119.1141531,0.0001178,2]
[339338278,1727455837742,-7544.50302701,0.0001178,2]
[339338279,1727455837754,-6904.82972179,0.0001178,2]